bitfinex/quotes_SOLUSD_20251118
["timestamp","ask_amount","ask_price","bid_price","bid_amount"]
[1763458323498,0.67,137.32,137.29,4.91841385]
[1763458323887,0.67,137.32,137.3,4.91841385]
[1763458324089,0.67,137.32,137.29,0.67]
[1763458324090,0.67,137.32,137.31,4.91841385]
[1763458324894,0.7294478,137.34,137.31,4.91841385]
[1763458325099,0.67,137.34,137.31,4.91841385]
[1763458326099,0.67,137.34,137.32,4.91841385]
[1763458330198,0.67,137.34,137.3,4.91841385]
[1763458330392,4.91841385,137.32,137.28,18.12096]
[1763458330693,5.64786165,137.33,137.28,18.12096]
[1763458330898,0.67,137.32,137.28,18.12096]
[1763458332278,4.91841385,137.31,137.26,0.67]
[1763458332690,0.72,137.3,137.26,18.79096]
[1763458333003,0.72,137.3,137.26,23.70937385]
[1763458333174,0.72,137.3,137.26,28.6277877]
[1763458334276,0.72,137.3,137.26,23.70937385]
[1763458334602,0.2,137.35,137.29,4.91841385]
[1763458334772,0.92,137.35,137.33,18.12096]
[1763458335297,0.72,137.34,137.33,18.12096]
[1763458335474,0.72,137.34,137.33,23.03937385]
[1763458335896,0.2,137.35,137.33,25.96110789]
[1763458336077,0.2,137.35,137.34,5.63841385]
[1763458336271,0.2,137.35,137.34,4.91841385]
[1763458336491,0.2,137.35,137.34,10.69841385]
[1763458336682,0.2,137.35,137.34,9.97841385]
[1763458338602,0.2,137.35,137.34,24.68565539]
[1763458338901,0.2,137.35,137.34,25.40565539]
[1763458340417,0.2,137.35,137.34,24.68565539]
[1763458341486,0.86,137.35,137.34,9.97841385]
[1763458341804,0.86,137.35,137.34,4.91841385]
[1763458344097,0.2,137.35,137.34,4.91841385]
[1763458344484,0.86,137.35,137.34,4.91841385]
[1763458345308,0.2,137.35,137.34,4.91841385]
[1763458345713,0.86,137.35,137.34,4.91841385]
[1763458345913,0.2,137.35,137.34,4.91841385]
[1763458346419,0.2,137.35,137.34,23.03937385]
[1763458346806,0.2,137.35,137.34,25.9608945]
[1763458348006,0.86,137.35,137.34,7.8399345]
[1763458348405,0.2,137.35,137.34,7.8399345]
[1763458350206,0.2,137.35,137.34,25.9608945]
[1763458350501,0.86,137.35,137.34,25.9608945]
[1763458351294,0.2,137.35,137.34,25.9608945]
[1763458351608,0.2,137.35,137.3,9.78882769]
[1763458351609,0.86,137.35,137.29,9.78882769]
[1763458351809,0.66,137.34,137.32,4.91841385]
[1763458352308,0.66,137.34,137.3,21.04312093]
[1763458352509,0.66,137.34,137.33,4.91841385]
[1763458353294,0.2,137.35,137.33,4.91841385]
[1763458353494,0.2,137.35,137.34,4.91841385]
[1763458354629,0.86,137.35,137.33,4.91841385]
[1763458355122,0.66,137.34,137.33,4.91841385]
[1763458355505,0.2,137.35,137.33,5.60841385]
[1763458355820,0.2,137.35,137.34,4.91841385]
[1763458356405,0.2,137.35,137.34,5.60841385]
[1763458356617,0.2,137.35,137.34,23.23696267]
[1763458357102,0.2,137.35,137.34,27.57696267]
[1763458357619,0.2,137.35,137.34,13.40013497]
[1763458357816,0.2,137.35,137.34,45.69792267]
[1763458358828,0.2,137.35,137.34,40.77950882]
[1763458359322,0.2,137.35,137.34,40.08950882]
[1763458359519,0.2,137.35,137.34,21.96854882]
[1763458360114,0.2,137.35,137.34,4.91841385]
[1763458360619,0.2,137.35,137.34,7.83950779]
[1763458364525,0.2,137.35,137.34,27.19674933]
[1763458364729,0.2,137.39,137.34,27.19674933]
[1763458364929,0.2,137.39,137.38,4.91841385]
[1763458365447,0.88,137.39,137.38,4.91841385]
[1763458365615,0.2,137.39,137.38,7.83886798]
[1763458366131,0.88,137.39,137.36,4.91841385]
[1763458366633,0.68,137.38,137.35,7.83950779]
[1763458367520,0.68,137.38,137.36,4.91841385]
[1763458368936,5.02,137.38,137.36,4.91841385]
[1763458369436,0.68,137.37,137.34,4.91841385]
[1763458369635,1.4094478,137.37,137.34,4.91841385]
[1763458370043,0.68,137.36,137.33,9.8368277]
[1763458370751,0.68,137.36,137.34,4.91841385]
[1763458372828,0.68,137.36,137.32,5.11841385]
[1763458373134,0.7294478,137.35,137.31,3.14600965]
[1763458373335,0.68,137.34,137.31,3.14600965]
[1763458374448,0.68,137.34,137.29,3.14600965]
[1763458374656,0.68,137.34,137.32,3.14600965]
[1763458374856,0.68,137.34,137.28,31.05579734]
[1763458375152,5.0694478,137.33,137.29,3.14600965]
[1763458375532,0.68,137.32,137.29,3.14600965]
[1763458379335,0.68,137.32,137.3,3.14600965]
[1763458380048,0.68,137.32,137.26,4.34]
[1763458380247,0.68,137.32,137.29,3.14600965]
[1763458380555,0.68,137.32,137.3,3.14600965]
[1763458382257,5.02,137.35,137.31,3.14600965]
[1763458382464,5.02,137.35,137.34,3.14600965]
[1763458382669,0.68,137.35,137.34,3.14600965]
[1763458382830,4.34,137.36,137.34,3.14600965]
[1763458383038,5.02,137.36,137.35,3.14600965]
[1763458383237,4.34,137.36,137.35,3.14600965]
[1763458383741,0.88,137.39,137.35,3.45600965]
[1763458383950,0.88,137.39,137.38,3.14600965]
[1763458384142,0.2,137.39,137.38,3.14600965]
[1763458384938,0.88,137.39,137.38,3.14600965]
[1763458385345,0.88,137.39,137.37,3.14600965]
[1763458385563,0.2,137.39,137.38,3.14600965]
[1763458386076,0.88,137.39,137.38,3.14600965]
[1763458386283,0.2,137.39,137.38,3.14600965]
[1763458386875,0.88,137.39,137.38,3.14600965]
[1763458394360,0.2,137.39,137.38,3.14600965]
[1763458394773,0.92,137.39,137.38,3.14600965]
[1763458395770,0.2,137.39,137.38,3.14600965]
[1763458395976,0.92,137.39,137.35,4.44]
[1763458396189,0.92,137.39,137.36,3.14600965]
[1763458396487,0.72,137.38,137.36,3.14600965]
[1763458397477,0.72,137.38,137.37,3.14600965]
[1763458400054,1.4494478,137.38,137.35,3.14600965]
[1763458400291,1.4494478,137.38,137.34,3.14600965]
[1763458400531,0.72,137.37,137.34,3.14600965]
[1763458400893,0.72,137.38,137.36,3.14600965]
[1763458401060,0.72,137.38,137.37,3.14600965]
[1763458401061,5.06,137.38,137.37,3.14600965]
[1763458402797,0.2,137.39,137.37,3.14600965]
[1763458402960,0.2,137.39,137.38,3.14600965]
[1763458405089,0.2,137.39,137.36,0.31]
[1763458405291,0.2,137.39,137.38,3.14600965]
[1763458407609,0.2,137.39,137.37,21.04120091]
[1763458407800,0.2,137.39,137.38,3.14600965]
[1763458411705,0.2,137.39,137.36,9.78882769]
[1763458412013,0.91,137.39,137.38,3.14600965]
[1763458412820,0.91,137.39,137.37,3.14600965]
[1763458414234,0.2,137.39,137.38,3.14600965]
[1763458414527,0.2,137.39,137.38,31.36579734]
[1763458414825,0.2,137.39,137.38,34.28561193]
[1763458415823,0.2,137.4,137.38,20.03856957]
[1763458415988,0.2,137.4,137.39,3.45600965]
[1763458416318,0.2,137.4,137.39,13.24483734]
[1763458416525,0.2,137.4,137.39,12.93483734]
[1763458416713,0.2,137.4,137.39,3.14600965]
[1763458416926,0.91,137.4,137.38,3.14600965]
[1763458417101,0.91,137.4,137.39,3.14600965]
[1763458417920,0.91,137.4,137.38,3.14600965]
[1763458418216,0.91,137.4,137.24,149.11867393]
[1763458418217,1.4394478,137.39,137.35,3.14600965]
[1763458418596,0.71,137.38,137.35,3.14600965]
[1763458422825,0.71,137.38,137.34,21.26696965]
[1763458424106,0.71,137.38,137.35,3.14600965]
[1763458424798,0.71,137.38,137.36,3.14600965]
[1763458426426,0.71,137.38,137.35,3.14600965]
[1763458427696,0.71,137.38,137.34,22.56096]
[1763458427903,0.71,137.38,137.35,3.14600965]
[1763458429226,0.71,137.38,137.36,3.14600965]
[1763458429726,4.54,137.4,137.37,3.14600965]
[1763458430028,0.7,137.39,137.37,3.14600965]
[1763458430330,0.7,137.39,137.38,3.14600965]
[1763458430703,0.7,137.39,137.37,3.14600965]
[1763458431205,0.7,137.39,137.34,90.90978769]
[1763458431422,0.7,137.39,137.36,3.14600965]
[1763458431798,0.7,137.39,137.34,21.26696965]
[1763458431799,4.57545745,137.39,137.34,21.26696965]
[1763458432001,1.4294478,137.39,137.34,21.26696965]
[1763458432204,0.7,137.38,137.34,21.26696965]
[1763458432429,0.7,137.38,137.35,3.14600965]
[1763458432823,0.7,137.38,137.35,4.91496897]
[1763458433430,6.34441677,137.38,137.33,23.03592897]
[1763458433632,1.4294478,137.38,137.34,4.91496897]
[1763458433934,0.7,137.37,137.34,4.91496897]
[1763458436008,0.7,137.37,137.36,4.91496897]
[1763458436230,0.7,137.39,137.36,4.91496897]
[1763458436549,0.7,137.39,137.37,4.91496897]
[1763458437608,0.7,137.39,137.38,4.91496897]
[1763458437908,0.7,137.39,137.37,4.91496897]
[1763458438211,0.7,137.39,137.38,4.91496897]
[1763458438436,0.7,137.39,137.37,4.91496897]
[1763458438735,0.7,137.39,137.35,4.91496897]
[1763458439205,0.7,137.39,137.34,9.78882769]
[1763458439206,0.7,137.39,137.36,4.91496897]
[1763458440338,0.7,137.39,137.37,4.91496897]
[1763458440838,0.7,137.39,137.36,4.91496897]
[1763458442014,0.7,137.39,137.37,4.91496897]
[1763458442217,0.7,137.39,137.38,4.91496897]
[1763458442518,0.2,137.4,137.39,18.12096]
[1763458442712,0.9,137.4,137.39,23.03592897]
[1763458442938,0.2,137.4,137.39,23.03592897]
[1763458443240,0.2,137.4,137.39,33.13475666]
[1763458443442,0.2,137.4,137.39,32.82475666]
[1763458445247,0.9,137.4,137.38,23.03592897]
[1763458445447,0.9,137.4,137.38,18.12096]
[1763458445612,0.2,137.4,137.37,4.91496897]
[1763458445813,0.9,137.4,137.37,4.91496897]
[1763458446012,0.9,137.4,137.38,4.91496897]
[1763458446234,0.7,137.39,137.38,4.91496897]
[1763458446823,0.7,137.39,137.37,4.91496897]
[1763458447442,0.7,137.39,137.35,18.12096]
[1763458447647,0.7,137.39,137.37,4.91496897]
[1763458449319,0.2,137.4,137.38,4.91496897]
[1763458449521,0.2,137.4,137.39,4.91496897]
[1763458449719,0.9,137.4,137.39,4.91496897]
[1763458451956,0.9,137.4,137.38,4.91496897]
[1763458452265,0.65,137.39,137.37,4.91496897]
[1763458452637,0.65,137.39,137.36,4.91496897]
[1763458453538,0.65,137.39,137.37,4.91496897]
[1763458453749,0.2,137.4,137.38,4.91496897]
[1763458453954,0.85,137.4,137.39,4.91496897]
[1763458455261,0.85,137.4,137.38,4.91496897]
[1763458455435,0.85,137.4,137.35,18.12096]
[1763458455436,0.65,137.39,137.37,4.91496897]
[1763458455755,0.65,137.39,137.36,4.91496897]
[1763458456130,0.65,137.39,137.35,18.12096]
[1763458456331,0.65,137.39,137.35,23.03592897]
[1763458456540,0.65,137.39,137.36,4.91496897]
[1763458456848,0.65,137.39,137.35,4.91496897]
[1763458460175,0.65,137.39,137.36,4.91496897]
[1763458462346,0.65,137.39,137.36,23.03592897]
[1763458463460,0.65,137.39,137.36,4.91496897]
[1763458464661,0.2,137.4,137.38,4.91496897]
[1763458464854,0.7,137.39,137.38,4.91496897]
[1763458465333,0.7,137.39,137.37,18.12096]
[1763458465533,0.7,137.39,137.38,4.91496897]
[1763458465962,0.7,137.39,137.37,4.91496897]
[1763458466135,0.7,137.39,137.36,4.91496897]
[1763458467356,0.7,137.39,137.37,4.91496897]
[1763458468960,0.7,137.39,137.35,18.12096]
[1763458469254,0.7,137.39,137.36,4.91496897]
[1763458470144,0.7,137.39,137.37,4.91496897]
[1763458472966,0.7,137.39,137.36,4.91496897]
[1763458474449,5.0694478,137.38,137.34,4.91496897]
[1763458474768,4.34,137.38,137.34,4.91496897]
[1763458474942,0.7,137.37,137.34,4.91496897]
[1763458475780,1.4294478,137.37,137.32,18.12096]
[1763458476067,4.91496897,137.35,137.3,4.91496897]
[1763458476268,9.98441677,137.34,137.29,4.91496897]
[1763458476444,5.0694478,137.34,137.31,4.91496897]
[1763458476772,0.7,137.33,137.31,4.91496897]
[1763458477070,0.7,137.33,137.27,18.12096]
[1763458477268,0.7,137.33,137.29,4.91496897]
[1763458477845,5.64441677,137.32,137.24,0.51]
[1763458478150,4.91496897,137.31,137.26,4.91496897]
[1763458478354,5.7694478,137.3,137.26,4.91496897]
[1763458478557,4.91496897,137.29,137.24,5.11496897]
[1763458478866,5.64441677,137.28,137.24,5.11496897]
[1763458479173,1.4294478,137.28,137.24,0.2]
[1763458479476,0.7,137.27,137.24,5.11496897]
[1763458479975,0.7294478,137.28,137.25,0.31]
[1763458479976,4.34,137.28,137.25,0.31]
[1763458480145,0.7,137.27,137.24,5.11496897]
[1763458480478,0.7,137.27,137.24,0.2]
[1763458481373,0.7,137.27,137.24,5.11496897]
[1763458481676,0.7,137.27,137.25,4.91496897]
[1763458481875,0.7,137.27,137.26,4.91496897]
[1763458482250,4.34,137.28,137.26,4.91496897]
[1763458482563,5.06,137.28,137.27,4.91496897]
[1763458482759,5.06,137.28,137.26,4.91496897]
[1763458482974,0.72,137.27,137.25,4.91496897]
[1763458483354,0.72,137.31,137.27,18.12096]
[1763458483569,4.34,137.32,137.26,4.91496897]
[1763458483770,1.4494478,137.31,137.27,4.91496897]
[1763458483980,6.36441677,137.31,137.26,4.91496897]
[1763458484151,0.72,137.3,137.26,4.91496897]
[1763458484351,0.72,137.3,137.27,4.91496897]
[1763458484552,0.72,137.3,137.28,4.91496897]
[1763458485670,0.72,137.3,137.26,18.12096]
[1763458485865,0.72,137.3,137.27,4.91496897]
[1763458486465,0.72,137.3,137.28,4.91496897]
[1763458486976,4.34,137.32,137.29,4.91496897]
[1763458487152,0.72,137.31,137.3,4.91496897]
[1763458487581,4.34,137.32,137.3,4.91496897]
[1763458487755,0.72,137.31,137.3,4.91496897]
[1763458488983,0.72,137.31,137.29,4.91496897]
[1763458489476,0.72,137.31,137.28,23.03592897]
[1763458489979,0.72,137.31,137.28,4.91496897]
[1763458490153,0.7294478,137.3,137.27,18.12096]
[1763458490356,0.7294478,137.3,137.27,4.91496897]
[1763458490550,0.72,137.29,137.27,4.91496897]
[1763458490783,0.72,137.29,137.24,0.2]
[1763458491081,1.4494478,137.29,137.26,4.91496897]
[1763458491278,0.72,137.29,137.26,4.91496897]
[1763458491466,0.72,137.28,137.25,4.91496897]
[1763458491661,5.06,137.28,137.24,0.2]
[1763458491979,0.7294478,137.27,137.24,0.2]
[1763458492179,1.4494478,137.27,137.24,0.2]
[1763458492357,0.72,137.26,137.24,0.2]
[1763458492558,0.7294478,137.25,137.24,0.2]
[1763458493068,1.4494478,137.25,137.24,0.2]
[1763458497767,0.72,137.25,137.24,0.2]
[1763458498159,0.72,137.25,137.24,3.35204986]
[1763458498359,0.72,137.25,137.24,0.2]
[1763458500568,0.72,137.25,137.24,3.35204986]
[1763458500775,0.72,137.26,137.24,3.35204986]
[1763458500985,0.7294478,137.27,137.24,3.35204986]
[1763458501169,0.72,137.27,137.24,3.35204986]
[1763458501480,0.72,137.27,137.25,3.15204986]
[1763458501856,0.72,137.27,137.24,3.35204986]
[1763458502059,0.7294478,137.26,137.24,0.2]
[1763458502498,0.72,137.25,137.24,0.2]
[1763458502992,0.72,137.26,137.24,3.35204986]
[1763458503283,0.72,137.26,137.24,0.2]
[1763458503486,0.72,137.26,137.24,3.35204986]
[1763458504285,4.34,137.28,137.25,3.15204986]
[1763458504475,4.34,137.28,137.27,3.15204986]
[1763458504966,4.34,137.28,137.26,3.15204986]
[1763458505163,5.06,137.28,137.26,3.15204986]
[1763458505363,0.72,137.27,137.24,0.2]
[1763458505629,0.72,137.27,137.25,3.15204986]
[1763458505799,0.72,137.27,137.24,21.47300986]
[1763458506084,4.34,137.28,137.26,3.15204986]
[1763458506284,5.06,137.28,137.26,3.15204986]
[1763458506592,4.34,137.28,137.26,3.15204986]
[1763458506769,5.06,137.28,137.26,3.15204986]
[1763458508600,0.7294478,137.35,137.3,18.12096]
[1763458508780,0.7294478,137.35,137.33,3.15204986]
[1763458508781,0.72,137.34,137.33,3.15204986]
[1763458509266,0.72,137.34,137.32,3.15204986]
[1763458511194,0.72,137.34,137.31,3.15204986]
[1763458512284,0.72,137.34,137.32,3.15204986]
[1763458513002,5.06,137.36,137.33,3.15204986]
[1763458513295,5.06,137.36,137.34,3.15204986]
[1763458515099,5.06,137.36,137.35,3.15204986]
[1763458518809,5.06,137.36,137.34,3.15204986]
[1763458518999,4.34,137.36,137.34,3.15204986]
[1763458519200,5.06,137.36,137.34,3.15204986]
[1763458520088,4.34,137.36,137.34,3.15204986]
[1763458520283,0.69,137.35,137.34,3.15204986]
[1763458520688,0.69,137.35,137.33,3.15204986]
[1763458521378,0.69,137.35,137.34,3.15204986]
[1763458521582,5.03,137.36,137.34,3.15204986]
[1763458521792,4.34,137.36,137.35,3.15204986]
[1763458522196,5.03,137.36,137.35,3.15204986]
[1763458522486,5.03,137.36,137.34,3.15204986]
[1763458522686,0.69,137.35,137.34,3.15204986]
[1763458523714,5.03,137.36,137.34,3.15204986]
[1763458524016,0.69,137.35,137.34,3.15204986]
[1763458524509,4.34,137.36,137.34,3.15204986]
[1763458524690,0.69,137.35,137.34,3.15204986]
[1763458524888,5.03,137.36,137.34,3.15204986]
[1763458525092,5.03,137.36,137.35,3.15204986]
[1763458525413,4.34,137.36,137.34,3.15204986]
[1763458525911,0.69,137.35,137.34,3.15204986]
[1763458526588,0.69,137.35,137.3,18.12096]
[1763458526788,0.69,137.35,137.32,3.15204986]
[1763458526989,1.4194478,137.35,137.32,3.15204986]
[1763458527406,0.69,137.34,137.32,3.15204986]
[1763458527610,0.69,137.34,137.33,3.15204986]
[1763458528220,0.69,137.34,137.32,3.15204986]
[1763458533419,0.69,137.34,137.33,3.15204986]
[1763458535593,4.34,137.36,137.33,3.15204986]
[1763458535794,5.03,137.36,137.33,3.15204986]
[1763458536108,0.69,137.36,137.35,3.15204986]
[1763458538000,4.34,137.37,137.35,3.15204986]
[1763458538220,4.34,137.37,137.36,3.15204986]
[1763458538421,5.03,137.37,137.36,3.15204986]
[1763458540212,4.34,137.37,137.36,3.15204986]
[1763458541533,5.03,137.37,137.33,18.43096]
[1763458541825,0.69,137.36,137.33,18.12096]
[1763458542031,0.69,137.36,137.34,3.15204986]
[1763458542505,0.69,137.36,137.35,3.15204986]
[1763458542911,0.69,137.36,137.33,18.12096]
[1763458543128,0.69,137.36,137.35,3.15204986]
[1763458543313,5.02,137.37,137.35,3.15204986]
[1763458543822,0.68,137.36,137.35,3.15204986]
[1763458544325,0.68,137.36,137.34,3.15204986]
[1763458544631,1.4094478,137.36,137.3,0.31]
[1763458545000,0.68,137.35,137.32,3.15204986]
[1763458545300,0.68,137.35,137.33,3.15204986]
[1763458545721,0.68,137.35,137.32,3.15204986]
[1763458546426,0.68,137.34,137.33,3.15204986]
[1763458546830,0.68,137.34,137.3,0.31]
[1763458547005,0.68,137.34,137.32,3.15204986]
[1763458550669,0.68,137.34,137.33,3.15204986]
[1763458552225,0.68,137.36,137.33,3.15204986]
[1763458552522,0.68,137.36,137.3,18.12096]
[1763458552523,0.68,137.36,137.34,3.15204986]
[1763458552929,0.68,137.36,137.34,4.91513677]
[1763458553528,0.68,137.36,137.31,0.31]
[1763458553731,0.68,137.36,137.34,4.91513677]
[1763458553935,5.0694478,137.37,137.35,4.91513677]
[1763458553936,5.02,137.37,137.35,4.91513677]
[1763458554336,0.68,137.36,137.35,4.91513677]
[1763458555419,4.34,137.37,137.35,4.91513677]
[1763458555614,0.2,137.4,137.36,5.22513677]
[1763458555827,5.54053897,137.4,137.39,4.91513677]
[1763458556746,6.22053897,137.4,137.39,4.91513677]
[1763458556950,5.54053897,137.4,137.39,4.91513677]
[1763458557121,0.2,137.4,137.39,4.91513677]
[1763458557649,0.2,137.4,137.39,5.22513677]
[1763458558053,0.2,137.4,137.39,15.01396446]
[1763458559423,0.2,137.4,137.39,14.70396446]
[1763458559624,0.2,137.4,137.39,4.91513677]
[1763458560951,0.2,137.4,137.38,18.12096]
[1763458561132,0.2,137.4,137.39,4.91513677]
[1763458562254,0.2,137.4,137.39,5.22513677]
[1763458562451,0.2,137.4,137.39,15.01396446]
[1763458563031,0.2,137.4,137.39,19.92910123]
[1763458563731,0.2,137.4,137.39,15.01396446]
[1763458566062,0.2,137.4,137.39,20.65695624]
[1763458566256,0.2,137.4,137.39,23.57634462]
[1763458566630,0.2,137.4,137.39,86.57634462]
[1763458567963,0.1,137.41,137.4,27.95123354]
[1763458568134,0.1,137.41,137.4,82.92910123]
[1763458568457,0.1,137.41,137.4,87.24910123]
[1763458568756,0.1,137.41,137.4,92.49690326]
[1763458570447,0.2,137.46,137.44,27.90978769]
[1763458570641,0.2,137.46,137.45,14.70396446]
[1763458570872,0.2,137.46,137.45,15.01396446]
[1763458574742,0.1,137.48,137.47,27.90978769]
[1763458575065,0.1,137.48,137.47,32.82492446]
[1763458575261,0.1,137.48,137.47,33.13492446]
[1763458576174,0.1,137.48,137.47,36.05303498]
[1763458576471,0.1,137.48,137.47,35.74303498]
[1763458577073,0.1,137.48,137.47,32.82492446]
[1763458580443,0.78,137.48,137.47,23.03609677]
[1763458580857,0.1,137.48,137.47,23.03609677]
[1763458582052,0.78,137.48,137.47,18.12096]
[1763458582470,0.78,137.48,137.44,2.91853635]
[1763458582749,6.42458457,137.48,137.43,4.91513677]
[1763458583185,0.68,137.47,137.43,4.91513677]
[1763458583565,5.59513677,137.47,137.43,4.91513677]
[1763458583749,0.68,137.46,137.43,4.91513677]
[1763458584176,0.68,137.46,137.42,23.03609677]
[1763458584373,0.68,137.46,137.43,4.91513677]
[1763458585276,0.68,137.46,137.42,18.12096]
[1763458585277,0.68,137.46,137.44,4.91513677]
[1763458585889,0.68,137.46,137.45,4.91513677]
[1763458586585,0.68,137.46,137.44,4.91513677]
[1763458587809,0.68,137.46,137.42,18.12096]
[1763458588095,0.68,137.46,137.43,4.91513677]
[1763458588890,0.68,137.46,137.39,19.85341226]
[1763458589062,0.7294478,137.45,137.41,23.03609677]
[1763458589261,0.7294478,137.45,137.4,4.91513677]
[1763458589262,0.68,137.44,137.4,4.91513677]
[1763458589498,4.32,137.43,137.39,4.91513677]
[1763458589665,0.68,137.42,137.39,4.91513677]
[1763458589859,0.68,137.42,137.39,18.12096]
[1763458590090,0.68,137.42,137.39,23.03609677]
[1763458590295,0.7294478,137.41,137.34,0.31]
[1763458590491,0.68,137.4,137.37,4.91513677]
[1763458590875,5.59513677,137.4,137.31,4.32]
[1763458591091,0.7294478,137.39,137.35,4.91513677]
[1763458591396,1.4094478,137.39,137.35,4.91513677]
[1763458591766,0.68,137.38,137.36,4.91513677]
[1763458591979,0.68,137.38,137.37,4.91513677]
[1763458592173,0.68,137.4,137.37,4.91513677]
[1763458592408,0.68,137.4,137.39,4.91513677]
[1763458592570,0.68,137.42,137.39,4.91513677]
[1763458592774,4.32,137.44,137.41,4.91513677]
[1763458593003,4.32,137.44,137.4,4.91513677]
[1763458593212,4.32,137.44,137.37,9.78882769]
[1763458593374,4.91513677,137.42,137.37,18.12096]
[1763458593574,0.7294478,137.41,137.37,4.91513677]
[1763458593807,1.4094478,137.41,137.37,4.91513677]
[1763458594309,0.68,137.4,137.37,4.91513677]
[1763458596621,0.68,137.4,137.38,4.91513677]
[1763458596821,4.32,137.44,137.39,4.91513677]
[1763458597106,0.68,137.43,137.41,4.91513677]
[1763458597312,0.68,137.43,137.39,18.12096]
[1763458597518,0.68,137.43,137.41,4.91513677]
[1763458597687,0.68,137.43,137.38,32.22978769]
[1763458598016,0.68,137.43,137.4,4.91513677]
[1763458598198,0.68,137.43,137.38,18.12096]
[1763458598389,0.68,137.43,137.39,4.91513677]
[1763458599016,0.68,137.43,137.4,4.91513677]
[1763458602426,0.68,137.43,137.41,4.91513677]
[1763458603031,0.68,137.43,137.42,4.91513677]
[1763458603808,0.68,137.43,137.41,4.91513677]
[1763458604142,0.68,137.43,137.4,4.91513677]
[1763458605608,0.68,137.43,137.41,4.91513677]
[1763458607126,0.68,137.43,137.42,4.91513677]
[1763458608708,5.0494478,137.46,137.42,4.91513677]
[1763458608709,0.71,137.45,137.42,4.91513677]
[1763458608910,0.71,137.45,137.43,4.91513677]
[1763458609117,0.71,137.45,137.44,4.91513677]
[1763458611134,0.71,137.45,137.43,4.91513677]
[1763458611334,0.71,137.45,137.44,4.91513677]
[1763458611717,0.71,137.45,137.43,4.91513677]
[1763458611910,0.71,137.45,137.43,23.03609677]
[1763458612316,0.71,137.45,137.41,22.44096]
[1763458612633,0.71,137.45,137.43,4.91513677]
[1763458613332,0.71,137.45,137.44,4.91513677]
[1763458613631,1.4394478,137.45,137.42,4.91513677]
[1763458613808,1.4394478,137.45,137.41,4.91513677]
[1763458614005,0.71,137.44,137.41,4.91513677]
[1763458614837,0.71,137.44,137.41,3.14291023]
[1763458615140,0.7294478,137.43,137.35,10.09882769]
[1763458615308,0.7294478,137.43,137.4,3.14291023]
[1763458615515,5.03,137.42,137.41,3.14291023]
[1763458615837,5.03,137.42,137.4,3.14291023]
[1763458616007,0.7294478,137.45,137.41,3.14291023]
[1763458616008,4.32,137.43,137.41,3.14291023]
[1763458616435,4.32,137.45,137.42,3.14291023]
[1763458616615,0.71,137.43,137.38,18.12096]
[1763458616811,0.71,137.43,137.41,3.14291023]
[1763458618344,5.03,137.43,137.41,3.14291023]
[1763458618733,0.71,137.42,137.41,3.14291023]
[1763458619923,0.71,137.42,137.4,3.14291023]
[1763458620344,0.71,137.42,137.41,3.14291023]
[1763458620524,5.03,137.44,137.41,3.14291023]
[1763458620739,4.32,137.44,137.43,3.14291023]
[1763458620924,4.32,137.44,137.41,3.14291023]
[1763458621226,0.71,137.43,137.41,3.14291023]
[1763458621622,0.71,137.43,137.41,2.49611023]
[1763458621826,0.71,137.43,137.42,3.14291023]
[1763458622434,0.71,137.43,137.41,3.14291023]
[1763458622816,0.71,137.43,137.42,3.14291023]
[1763458623138,0.71,137.43,137.38,9.78882769]
[1763458623345,0.71,137.43,137.41,3.14291023]
[1763458623712,0.71,137.43,137.4,3.14291023]